bitfinex/quotes_BTCUSD_20241020
["timestamp","ask_amount","ask_price","bid_price","bid_amount"]
[1729397412908,0.23556831,68186.0,68185.0,0.25242178]
[1729397413108,0.24656838,68186.0,68185.0,0.25242178]
[1729397413351,0.2108189,68186.0,68185.0,0.25242178]
[1729397413571,0.23556909,68186.0,68185.0,0.25242178]
[1729397414220,0.24656917,68186.0,68185.0,0.25242178]
[1729397416845,0.19981883,68186.0,68185.0,0.25242178]
[1729397417059,0.24656917,68186.0,68185.0,0.25242178]
[1729397420461,0.24656917,68186.0,68185.0,0.23841809]
[1729397420681,0.24656917,68186.0,68185.0,0.25242305]
[1729397421570,0.0841546,68186.0,68185.0,0.25242305]
[1729397421780,0.24656556,68186.0,68185.0,0.25242305]
[1729397424197,0.24656179,68186.0,68185.0,0.25242305]
[1729397424409,0.24656063,68186.0,68185.0,0.25242305]
[1729397428114,0.16406496,68186.0,68185.0,0.25242305]
[1729397428348,0.24655702,68186.0,68185.0,0.25242305]
[1729397435905,0.24655697,68186.0,68185.0,0.25242305]
[1729397436565,0.24655475,68186.0,68185.0,0.25242305]
[1729397439586,0.21080824,68186.0,68185.0,0.25242305]
[1729397439819,0.24655469,68186.0,68185.0,0.25242305]
[1729397443486,0.19980915,68186.0,68185.0,0.25242305]
[1729397443746,0.23555556,68186.0,68185.0,0.25242305]
[1729397444000,0.24655445,68186.0,68185.0,0.25242305]
[1729397445593,0.21080804,68186.0,68185.0,0.25242305]
[1729397445821,0.24655441,68186.0,68185.0,0.25242305]
[1729397446260,0.24655418,68186.0,68185.0,0.25242305]
[1729397447325,0.17781126,68186.0,68185.0,0.25242305]
[1729397447591,0.23555601,68186.0,68185.0,0.25242305]
[1729397447804,0.24655501,68186.0,68185.0,0.25242305]
[1729397448019,0.25755402,68186.0,68185.0,0.25242305]
[1729397448458,0.24655502,68186.0,68185.0,0.25242305]
[1729397449104,0.21080827,68186.0,68185.0,0.25242305]
[1729397449317,0.24655536,68186.0,68185.0,0.25242305]
[1729397454059,0.24655486,68186.0,68185.0,0.25242305]
[1729397456171,0.1640618,68186.0,68185.0,0.25242305]
[1729397456421,0.24656161,68186.0,68185.0,0.25242305]
[1729397458714,0.2355616,68186.0,68185.0,0.25242305]
[1729397458946,0.24656157,68186.0,68185.0,0.25242305]
[1729397464825,0.1640618,68186.0,68185.0,0.25242305]
[1729397465035,0.24656164,68186.0,68185.0,0.25242305]
[1729397468615,0.17506178,68186.0,68185.0,0.25242305]
[1729397468825,0.24656189,68186.0,68185.0,0.25242305]
[1729397469033,0.21081185,68186.0,68185.0,0.25242305]
[1729397469249,0.24656193,68186.0,68185.0,0.25242305]
[1729397470532,0.17506181,68186.0,68185.0,0.25242305]
[1729397470775,0.24655999,68186.0,68185.0,0.25242305]
[1729397472525,0.24655947,68186.0,68185.0,0.25242305]
[1729397474555,0.25572633,68186.0,68185.0,0.25242305]
[1729397476361,0.25572584,68186.0,68185.0,0.25242305]
[1729397476591,0.246559,68186.0,68185.0,0.25242305]
[1729397480234,0.24655836,68186.0,68185.0,0.25242305]
[1729397480682,0.23555774,68186.0,68185.0,0.25242305]
[1729397480897,0.24655711,68186.0,68185.0,0.25242305]
[1729397484015,0.19980977,68186.0,68185.0,0.25242305]
[1729397484229,0.24655681,68186.0,68185.0,0.25242305]
[1729397485737,0.24655674,68186.0,68185.0,0.25242305]
[1729397487471,0.24498615,68186.0,68185.0,0.25242305]
[1729397488347,0.23398682,68186.0,68185.0,0.25242305]
[1729397488552,0.24498608,68186.0,68185.0,0.25242305]
[1729397488762,0.24499217,68186.0,68185.0,0.25242305]
[1729397492254,0.23399291,68186.0,68185.0,0.25242305]
[1729397492466,0.22299334,68186.0,68185.0,0.25242305]
[1729397492679,0.17349653,68186.0,68185.0,0.25242305]
[1729397492917,0.24499155,68186.0,68185.0,0.25242305]
[1729397493580,0.24499066,68186.0,68185.0,0.25242305]
[1729397494669,0.24499066,68186.0,68185.0,0.25325005]
[1729397496382,0.17349564,68186.0,68185.0,0.25325005]
[1729397496588,0.23399121,68186.0,68185.0,0.25325005]
[1729397496800,0.24499041,68186.0,68185.0,0.25325005]
[1729397500505,0.19824355,68186.0,68185.0,0.25325005]
[1729397500722,0.28073695,68186.0,68185.0,0.25325005]
[1729397500942,0.30548497,68186.0,68185.0,0.25325005]
[1729397504526,0.29448569,68186.0,68185.0,0.25325005]
[1729397504752,0.30548478,68186.0,68185.0,0.25325005]
[1729397504980,0.30548474,68186.0,68185.0,0.25325005]
[1729397507545,0.24498958,68186.0,68185.0,0.25325005]
[1729397508725,0.24498896,68186.0,68185.0,0.25325005]
[1729397512501,0.23399002,68186.0,68185.0,0.25325005]
[1729397512746,0.24498896,68186.0,68185.0,0.25325005]
[1729397513425,0.24497556,68186.0,68185.0,0.25325005]
[1729397514100,0.24497541,68186.0,68185.0,0.25325005]
[1729397516392,0.20922877,68186.0,68185.0,0.25325005]
[1729397516619,0.24497505,68186.0,68185.0,0.25325005]
[1729397517065,0.17348171,68186.0,68185.0,0.25325005]
[1729397517285,0.24497429,68186.0,68185.0,0.25325005]
[1729397517735,0.24497432,68186.0,68185.0,0.25325005]
[1729397520732,0.24497473,68186.0,68185.0,0.25325005]
[1729397523391,0.25597486,68186.0,68185.0,0.25325005]
[1729397523611,0.24497601,68186.0,68185.0,0.25325005]
[1729397526837,0.24498174,68186.0,68185.0,0.25325005]
[1729397527352,0.24498357,68186.0,68185.0,0.25325005]
[1729397531768,0.24498545,68186.0,68185.0,0.25325005]
[1729397535279,0.2449846,68186.0,68185.0,0.25325005]
[1729397539185,0.19823793,68186.0,68185.0,0.25325005]
[1729397539423,0.25598385,68186.0,68185.0,0.25325005]
[1729397539706,0.2559837,68186.0,68185.0,0.25325005]
[1729397540389,0.25598369,68186.0,68185.0,0.25325005]
[1729397541514,0.25598605,68186.0,68185.0,0.25325005]
[1729397542945,0.19824025,68186.0,68185.0,0.25325005]
[1729397543164,0.20923947,68186.0,68185.0,0.25325005]
[1729397543378,0.24498689,68186.0,68185.0,0.25325005]
[1729397543594,0.25598609,68186.0,68185.0,0.25325005]
[1729397548023,0.24498687,68186.0,68185.0,0.25325005]
[1729397550643,0.24498504,68186.0,68185.0,0.25325005]
[1729397551075,0.24498503,68186.0,68185.0,0.25325005]
[1729397554398,0.2449832,68186.0,68185.0,0.25325005]
[1729397558147,0.23123474,68186.0,68185.0,0.25325005]
[1729397558402,0.24498259,68186.0,68185.0,0.25325005]
[1729397558637,0.35496792,68186.0,68185.0,0.25325005]
[1729397561347,0.24498259,68186.0,68185.0,0.25325005]
[1729397561820,0.35496792,68186.0,68185.0,0.25325005]
[1729397562041,0.30821951,68186.0,68185.0,0.25325005]
[1729397562261,0.34396086,68186.0,68185.0,0.25325005]
[1729397562482,0.3549582,68186.0,68185.0,0.25325005]
[1729397563626,0.24497287,68186.0,68185.0,0.25325005]
[1729397564282,0.3549582,68186.0,68185.0,0.25325005]
[1729397564727,0.24497287,68186.0,68185.0,0.25325005]
[1729397565172,0.3549582,68186.0,68185.0,0.25325005]
[1729397565440,0.24497287,68186.0,68185.0,0.25325005]
[1729397566139,0.35490199,68186.0,68185.0,0.25325005]
[1729397566365,0.24493564,68186.0,68185.0,0.25325005]
[1729397569528,0.20919086,68186.0,68185.0,0.25325005]
[1729397569752,0.24492771,68186.0,68185.0,0.25325005]
[1729397573288,0.17345188,68186.0,68185.0,0.25325005]
[1729397573506,0.24492754,68186.0,68185.0,0.25325005]
[1729397573748,0.09904506,68186.0,68185.0,0.25325005]
[1729397573965,0.33289259,68186.0,68185.0,0.25325005]
[1729397574396,0.24491213,68186.0,68185.0,0.25325005]
[1729397574610,0.33287703,68186.0,68185.0,0.25325005]
[1729397577264,0.25040541,68186.0,68185.0,0.25325005]
[1729397577500,0.32187967,68186.0,68185.0,0.25325005]
[1729397577747,0.33287571,68186.0,68185.0,0.25325005]
[1729397580823,0.33287608,68186.0,68185.0,0.25325005]
[1729397583450,0.33287716,68186.0,68185.0,0.25325005]
[1729397584159,0.3328776,68186.0,68185.0,0.25325005]
[1729397589598,0.33287689,68186.0,68185.0,0.25325005]
[1729397594478,0.33288681,68186.0,68185.0,0.25325005]
[1729397595173,0.33289472,68186.0,68185.0,0.25325005]
[1729397596689,0.24492658,68186.0,68185.0,0.25325005]
[1729397597201,0.35488675,68186.0,68185.0,0.25325005]
[1729397597430,0.35488675,68186.0,68185.0,0.16155005]
[1729397598307,0.34389753,68186.0,68185.0,0.16155005]
[1729397598525,0.35489625,68186.0,68185.0,0.16155005]
[1729397599430,0.35491683,68186.0,68185.0,0.16155005]
[1729397600809,0.35491683,68186.0,68185.0,0.24234509]
[1729397601025,0.35491683,68186.0,68185.0,0.25803586]
[1729397609093,0.35492019,68186.0,68185.0,0.25803586]
[1729397612742,0.35491324,68186.0,68185.0,0.25803586]
[1729397616732,0.35491386,68186.0,68185.0,0.25803586]
[1729397619117,0.35489983,68186.0,68185.0,0.25803586]
[1729397620005,0.30815642,68186.0,68185.0,0.25803586]
[1729397620243,0.35489316,68186.0,68185.0,0.25803586]
[1729397623561,0.28341344,68186.0,68185.0,0.25803586]
[1729397623779,0.35489978,68186.0,68185.0,0.25803586]
[1729397624021,0.35489995,68186.0,68185.0,0.25803586]
[1729397627254,0.28341449,68186.0,68185.0,0.25803586]
[1729397627467,0.34391266,68186.0,68185.0,0.25803586]
[1729397627680,0.35491173,68186.0,68185.0,0.25803586]
[1729397631026,0.35442521,68186.0,68185.0,0.25803586]
[1729397632500,0.3544248,68186.0,68185.0,0.25803586]
[1729397633168,0.3560788,68186.0,68185.0,0.25803586]
[1729397633797,0.24652815,68186.0,68185.0,0.25803586]
[1729397634659,0.2465299,68186.0,68185.0,0.25803586]
[1729397637438,0.19703288,68186.0,68185.0,0.25803586]
[1729397637690,0.21078063,68186.0,68185.0,0.25803586]
[1729397637889,0.19412234,68186.0,68185.0,0.25803586]
[1729397638073,0.35650365,68186.0,68185.0,0.25803586]
[1729397638296,0.28501097,68186.0,68185.0,0.25803586]
[1729397638504,0.34275506,68186.0,68185.0,0.25803586]
[1729397638755,0.35650365,68186.0,68185.0,0.25803586]
[1729397642226,0.24652686,68186.0,68185.0,0.25803586]
[1729397642440,0.24655126,68186.0,68185.0,0.25803586]
[1729397647372,0.2465509,68186.0,68185.0,0.25803586]
[1729397650527,0.35653973,68186.0,68185.0,0.25803586]
[1729397651924,0.27404818,68186.0,68185.0,0.25803586]
[1729397652162,0.35654301,68186.0,68185.0,0.25803586]
[1729397652869,0.33454439,68186.0,68185.0,0.25803586]
[1729397655491,0.33454426,68186.0,68185.0,0.25803586]
[1729397659271,0.3345441,68186.0,68185.0,0.25803586]
[1729397659490,0.28504742,68186.0,68185.0,0.25803586]
[1729397659707,0.32354483,68186.0,68185.0,0.25803586]
[1729397660404,0.33454408,68186.0,68185.0,0.25803586]
[1729397662099,0.33454518,68186.0,68185.0,0.25803586]
[1729397663011,0.33454521,68186.0,68185.0,0.25803586]
[1729397666408,0.32079501,68186.0,68185.0,0.25803586]
[1729397666636,0.32354439,68186.0,68185.0,0.25803586]
[1729397666840,0.33454125,68186.0,68185.0,0.25803586]
[1729397669980,0.28504614,68186.0,68185.0,0.25803586]
[1729397670194,0.33454031,68186.0,68185.0,0.25803586]
[1729397670421,0.27404723,68186.0,68185.0,0.25803586]
[1729397670646,0.32354125,68186.0,68185.0,0.25803586]
[1729397670872,0.34828826,68186.0,68185.0,0.25803586]
[1729397671761,0.34828565,68186.0,68185.0,0.25803586]
[1729397673688,0.28779296,68186.0,68185.0,0.25803586]
[1729397673902,0.33728659,68186.0,68185.0,0.25803586]
[1729397674115,0.34828517,68186.0,68185.0,0.27959065]
[1729397674542,0.23829779,68186.0,68185.0,0.27959065]
[1729397678593,0.22454945,68186.0,68185.0,0.27959065]
[1729397679484,0.31253018,68186.0,68185.0,0.27959065]
[1729397680918,0.31252902,68186.0,68185.0,0.36172372]
[1729397681140,0.12812894,68186.0,68185.0,0.36379065]
[1729397681356,0.05114763,68186.0,68185.0,0.36379065]
[1729397681797,0.04839517,68186.0,68185.0,0.36379065]
[1729397682250,0.0373994,68186.0,68185.0,0.36379065]
[1729397683147,0.04839271,68186.0,68185.0,0.36379065]
[1729397684654,0.03737345,68186.0,68185.0,0.36379065]
[1729397684867,0.04836405,68186.0,68185.0,0.36379065]
[1729397686554,0.04835802,68186.0,68185.0,0.36379065]
[1729397691882,0.03736742,68186.0,68185.0,0.36379065]
[1729397692087,0.04835395,68186.0,68185.0,0.36379065]
[1729397692434,0.03736742,68186.0,68185.0,0.36379065]
[1729397692632,0.04835379,68186.0,68185.0,0.36379065]
[1729397695696,0.001654,68186.0,68185.0,0.36379065]
[1729397695899,0.03735917,68186.0,68185.0,0.36379065]
[1729397696323,0.04834537,68186.0,68185.0,0.36379065]
[1729397697839,0.04834586,68186.0,68185.0,0.36379065]
[1729397701986,0.01264032,68186.0,68185.0,0.36379065]
[1729397702198,0.0483492,68186.0,68185.0,0.36379065]
[1729397702642,0.05933703,68186.0,68185.0,0.36379065]
[1729397703078,0.04835071,68186.0,68185.0,0.36379065]
[1729397703291,0.01264183,68186.0,68185.0,0.36379065]
[1729397703509,0.04835421,68186.0,68185.0,0.36379065]
[1729397705713,0.0483606,68186.0,68185.0,0.36379065]
[1729397712966,0.03464861,68186.0,68185.0,0.36379065]
[1729397713221,0.04839636,68186.0,68185.0,0.36379065]
[1729397713449,0.03739846,68186.0,68185.0,0.36379065]
[1729397713868,0.04839675,68186.0,68185.0,0.36379065]
[1729397716692,0.04839704,68186.0,68185.0,0.36379065]
[1729397720330,0.03739917,68186.0,68185.0,0.36379065]
[1729397720550,0.04839768,68186.0,68185.0,0.36379065]
[1729397723496,0.02640065,68186.0,68185.0,0.36379065]
[1729397723947,0.001654,68186.0,68185.0,0.36379065]
[1729397724187,0.02640094,68186.0,68185.0,0.36379065]
[1729397724415,0.01265264,68186.0,68185.0,0.36379065]
[1729397724647,0.02640098,68186.0,68185.0,0.36379065]
[1729397731410,0.001654,68186.0,68185.0,0.36379065]
[1729397731635,0.03465076,68186.0,68185.0,0.36379065]
[1729397731871,0.04839941,68186.0,68185.0,0.36379065]
[1729397732589,0.02640157,68186.0,68185.0,0.36379065]
[1729397735389,0.01540265,68186.0,68185.0,0.36379065]
[1729397735590,0.02640162,68186.0,68185.0,0.36379065]
[1729397735872,0.01540272,68186.0,68185.0,0.36379065]
[1729397736047,0.02640169,68186.0,68185.0,0.36379065]
[1729397737457,0.04839965,68186.0,68185.0,0.36379065]
[1729397739289,0.04839971,68186.0,68185.0,0.36379065]
[1729397743003,0.01265299,68186.0,68185.0,0.36379065]
[1729397743195,0.03465107,68186.0,68185.0,0.36379065]
[1729397743415,0.04839985,68186.0,68185.0,0.36379065]
[1729397746936,0.001654,68186.0,68185.0,0.36379065]
[1729397747155,0.03740099,68186.0,68185.0,0.36379065]
[1729397747374,0.04840006,68186.0,68185.0,0.36379065]
[1729397747598,0.02640191,68186.0,68185.0,0.36379065]
[1729397748765,0.04840005,68186.0,68185.0,0.36379065]
[1729397750933,0.04840004,68186.0,68185.0,0.36379065]
[1729397754601,0.04840003,68186.0,68185.0,0.36379065]
[1729397757895,0.02640189,68186.0,68185.0,0.36379065]
[1729397758318,0.001654,68186.0,68185.0,0.36379065]
[1729397758524,0.01540283,68186.0,68185.0,0.36379065]
[1729397758964,0.04840002,68186.0,68185.0,0.36379065]
[1729397759813,0.02640189,68186.0,68185.0,0.36379065]
[1729397761072,0.2466274,68186.0,68185.0,0.28459065]
[1729397761337,0.02640201,68186.0,68185.0,0.18979065]
[1729397761549,0.02640204,68186.0,68185.0,0.18979065]
[1729397761981,0.04839774,68186.0,68185.0,0.18979065]
[1729397762622,0.04839774,68186.0,68185.0,0.17409988]
[1729397763097,0.04839774,68186.0,68185.0,0.18908533]
[1729397763309,0.09238651,68186.0,68185.0,0.18908533]
[1729397764838,0.09237773,68186.0,68185.0,0.18908533]
[1729397766834,0.09237536,68186.0,68185.0,0.18908533]
[1729397768197,0.06763223,68186.0,68185.0,0.18408533]
[1729397768428,0.09237303,68186.0,68185.0,0.18908533]
[1729397771678,0.09237079,68186.0,68185.0,0.18908533]
[1729397771896,0.03739072,68186.0,68185.0,0.18908533]
[1729397772126,0.0483863,68186.0,68185.0,0.18908533]
[1729397775637,0.0483863,68186.0,68185.0,0.28068533]
[1729397779061,0.02639447,68186.0,68185.0,0.28068533]
[1729397779291,0.0373903,68186.0,68185.0,0.28068533]
[1729397779525,0.04838608,68186.0,68185.0,0.28068533]
[1729397780934,0.01264978,68186.0,68185.0,0.28068533]
[1729397781152,0.04838668,68186.0,68185.0,0.28068533]
[1729397786353,0.04839025,68186.0,68185.0,0.28068533]
[1729397786576,0.04839154,68186.0,68185.0,0.28068533]
[1729397787454,0.04839154,68186.0,68185.0,0.27568533]
[1729397787695,0.04839154,68186.0,68185.0,0.28068533]
[1729397790027,0.01265107,68186.0,68185.0,0.28068533]
[1729397790279,0.04839764,68186.0,68185.0,0.28068533]
[1729397790560,0.03739916,68186.0,68185.0,0.28068533]
[1729397790788,0.04839767,68186.0,68185.0,0.28068533]
[1729397793706,0.01265251,68186.0,68185.0,0.28068533]
[1729397793922,0.04839867,68186.0,68185.0,0.28068533]
[1729397795475,0.09238307,68186.0,68185.0,0.28068533]
[1729397797404,0.09238337,68186.0,68185.0,0.28068533]
[1729397801249,0.09238735,68186.0,68185.0,0.28068533]
[1729397801461,0.08138992,68186.0,68185.0,0.28068533]
[1729397801680,0.03740154,68186.0,68185.0,0.18908533]
[1729397801910,0.04840078,68186.0,68185.0,0.18908533]
[1729397802119,0.09239073,68186.0,68185.0,0.18908533]
[1729397802758,0.09239087,68186.0,68185.0,0.28648533]
[1729397808348,0.05664333,68186.0,68185.0,0.28648533]
[1729397808559,0.09238989,68186.0,68185.0,0.28648533]
[1729397812563,0.09238959,68186.0,68185.0,0.26493054]
[1729397814998,0.09239517,68186.0,68185.0,0.26493054]
[1729397815899,0.09239527,68186.0,68185.0,0.26493054]
[1729397819771,0.05664871,68186.0,68185.0,0.26493054]
[1729397819977,0.04564977,68186.0,68185.0,0.26493054]
[1729397820533,0.03465083,68186.0,68185.0,0.26493054]
[1729397820739,0.08139642,68186.0,68185.0,0.26493054]
[1729397820939,0.09239536,68186.0,68185.0,0.26493054]
[1729397822751,0.05664879,68186.0,68185.0,0.26493054]
[1729397823095,0.04564985,68186.0,68185.0,0.26493054]
[1729397824901,0.06764772,68186.0,68185.0,0.26493054]
[1729397825747,0.08139639,68186.0,68185.0,0.26493054]
[1729397826387,0.03740054,68186.0,68185.0,0.26493054]
[1729397827707,0.001654,68186.0,68185.0,0.26493054]
[1729397830364,0.001654,68186.0,68185.0,0.25993054]
[1729397830608,0.001654,68186.0,68185.0,0.26493054]
[1729397833761,0.0374011,68186.0,68185.0,0.26493054]
[1729397835629,0.04840027,68186.0,68185.0,0.26493054]
[1729397835834,0.09239619,68186.0,68185.0,0.26493054]
[1729397839155,0.0923962,68186.0,68185.0,0.26493054]
[1729397844033,0.09239593,68186.0,68185.0,0.26493054]
[1729397844882,0.09239593,68186.0,68185.0,0.34013054]
[1729397848727,0.09239577,68186.0,68185.0,0.34013054]
[1729397852951,0.09239588,68186.0,68185.0,0.34013054]
[1729397853747,0.09239628,68186.0,68185.0,0.34013054]
[1729397854577,0.0923963,68186.0,68185.0,0.34013054]
[1729397854985,0.09239619,68186.0,68185.0,0.34013054]
[1729397858269,0.09239619,68186.0,68185.0,0.26493054]
[1729397858696,0.09239632,68186.0,68185.0,0.26493054]
[1729397863638,0.09239631,68186.0,68185.0,0.26493054]
[1729397865431,0.05664935,68186.0,68185.0,0.26493054]
[1729397865645,0.09239719,68186.0,68185.0,0.26493054]
[1729397865856,0.05664956,68186.0,68185.0,0.26493054]
[1729397866077,0.08139785,68186.0,68185.0,0.26493054]
[1729397866979,0.0923971,68186.0,68185.0,0.26493054]
[1729397872927,0.07039855,68186.0,68185.0,0.26493054]
[1729397873137,0.09239693,68186.0,68185.0,0.26493054]
[1729397873340,0.09239698,68186.0,68185.0,0.26493054]
[1729397875047,0.09239701,68186.0,68185.0,0.26493054]
[1729397876719,0.08139777,68186.0,68185.0,0.26493054]
[1729397877184,0.04565037,68186.0,68185.0,0.26493054]
[1729397877379,0.09239697,68186.0,68185.0,0.26493054]
[1729397878178,0.08139783,68186.0,68185.0,0.26493054]
[1729397879103,0.08139786,68186.0,68185.0,0.26493054]
[1729397884737,0.08139786,68186.0,68185.0,0.25993054]
[1729397884951,0.08139786,68186.0,68185.0,0.26493054]
[1729397886955,0.08139818,68186.0,68185.0,0.26493054]
[1729397887922,0.04565078,68186.0,68185.0,0.26493054]
[1729397888156,0.0813981,68186.0,68185.0,0.26493054]
[1729397890011,0.03740132,68186.0,68185.0,0.26493054]
[1729397890233,0.03740132,68186.0,68185.0,0.25993054]
[1729397890492,0.001654,68186.0,68185.0,0.26493054]
[1729397890724,0.0236521,68186.0,68185.0,0.26493054]
[1729397890951,0.03740091,68186.0,68185.0,0.26493054]
[1729397894161,0.03740026,68186.0,68185.0,0.25993054]
[1729397894389,0.08139597,68186.0,68185.0,0.26493054]
[1729397897169,0.03740026,68186.0,68185.0,0.26493054]
[1729397898211,0.03739956,68186.0,68185.0,0.26493054]
[1729397901649,0.03739854,68186.0,68185.0,0.26493054]
[1729397905215,0.001654,68186.0,68185.0,0.26493054]
[1729397905460,0.037398,68186.0,68185.0,0.26493054]
[1729397909389,0.001654,68186.0,68185.0,0.26493054]
[1729397909531,0.03739776,68186.0,68185.0,0.26493054]
[1729397912741,0.03739784,68186.0,68185.0,0.26493054]
[1729397919809,0.03739946,68186.0,68185.0,0.26493054]
[1729397927407,0.08139199,68186.0,68185.0,0.26493054]
[1729397930751,0.08139331,68186.0,68185.0,0.26493054]
[1729397931172,0.08139331,68186.0,68185.0,0.34003054]
[1729397934369,0.04564653,68186.0,68185.0,0.34003054]
[1729397934596,0.08139081,68186.0,68185.0,0.34003054]
[1729397935299,0.08139126,68186.0,68185.0,0.34003054]
[1729397935532,0.08139151,68186.0,68185.0,0.34003054]
[1729397940976,0.04564723,68186.0,68185.0,0.34003054]
[1729397941179,0.08139005,68186.0,68185.0,0.34003054]
[1729397942980,0.08139005,68186.0,68185.0,0.32504509]
[1729397943329,0.08139005,68186.0,68185.0,0.34003484]
[1729397943931,0.08138812,68186.0,68185.0,0.34003484]
[1729397948679,0.08138758,68186.0,68185.0,0.34003484]
[1729397949376,0.03739682,68186.0,68185.0,0.34003484]
[1729397950692,0.03739682,68186.0,68185.0,0.34503484]
[1729397951105,0.03739682,68186.0,68185.0,0.35003484]
[1729397951967,0.03739298,68186.0,68185.0,0.35003484]
[1729397955560,0.001654,68186.0,68185.0,0.35003484]
[1729397955809,0.03739007,68186.0,68185.0,0.35003484]
[1729397959213,0.001654,68186.0,68185.0,0.35003484]
[1729397959449,0.03738914,68186.0,68185.0,0.35003484]
[1729397960623,0.001654,68186.0,68185.0,0.35003484]
[1729397960869,0.03738883,68186.0,68185.0,0.35003484]
[1729397962963,0.03738872,68186.0,68185.0,0.35003484]
[1729397963215,0.01539812,68186.0,68185.0,0.35003484]
[1729397964179,0.01539812,68186.0,68185.0,0.49899399]
[1729397970092,0.03738874,68186.0,68185.0,0.49899399]
[1729397970314,0.03738875,68186.0,68185.0,0.49899399]
[1729397973058,0.01539813,68186.0,68185.0,0.49899399]
[1729397973911,0.01539813,68186.0,68185.0,0.52199399]
[1729397973912,0.01539855,68186.0,68185.0,0.52199399]
[1729397977356,0.001654,68186.0,68185.0,0.52199399]
[1729397977556,0.01539951,68186.0,68185.0,0.52199399]
[1729397981042,0.0154007,68186.0,68185.0,0.52199399]
[1729397985100,0.01539907,68186.0,68185.0,0.52199399]
[1729397988388,0.01539806,68186.0,68185.0,0.52199399]
[1729397991772,0.001654,68186.0,68185.0,0.52199399]
[1729397991991,0.0153968,68186.0,68185.0,0.52199399]
[1729397994306,0.001654,68186.0,68185.0,0.52199399]
[1729398018380,0.001654,68186.0,68185.0,0.53699399]
[1729398022350,0.001654,68186.0,68185.0,0.33149399]
[1729398030339,0.001654,68186.0,68185.0,0.45089399]
[1729398031651,0.001654,68186.0,68185.0,0.45515727]
[1729398032130,0.001654,68186.0,68185.0,0.53595727]
[1729398062962,0.001654,68186.0,68185.0,0.45515727]
[1729398082424,0.001654,68186.0,68185.0,0.45015727]
[1729398082635,0.001654,68186.0,68185.0,0.45515727]
[1729398083929,0.001654,68186.0,68185.0,0.45015727]
[1729398084358,0.001654,68186.0,68185.0,0.45515727]
[1729398105871,0.001654,68186.0,68185.0,0.45015727]
[1729398106107,0.001654,68186.0,68185.0,0.45515727]
[1729398123331,0.001654,68186.0,68185.0,0.45516072]
[1729398136230,0.001654,68186.0,68185.0,0.45016072]
[1729398160257,0.001654,68186.0,68185.0,0.30350172]
[1729398160726,0.001654,68186.0,68185.0,0.45016072]
[1729398179974,0.001654,68186.0,68185.0,0.49410485]
[1729398180375,0.001654,68186.0,68185.0,0.51607691]
[1729398181339,0.001654,68186.0,68185.0,0.51606214]
[1729398181738,0.001654,68186.0,68185.0,0.49408198]
[1729398183048,0.001654,68186.0,68185.0,0.45016072]
[1729398183680,0.001654,68186.0,68185.0,0.49406961]
[1729398187318,0.001654,68186.0,68185.0,0.45016072]
[1729398188199,0.001654,68186.0,68185.0,0.53346072]
[1729398193396,0.001654,68186.0,68185.0,0.5773506]
[1729398193626,0.001654,68186.0,68185.0,0.53346072]
[1729398197181,0.001654,68186.0,68185.0,0.53546072]
[1729398198755,0.001654,68186.0,68185.0,0.5793311]
[1729398200826,0.001654,68186.0,68185.0,0.53546072]
[1729398201042,0.001654,68186.0,68185.0,0.60128056]
[1729398201272,0.001654,68186.0,68185.0,0.53546072]
[1729398201719,0.001654,68186.0,68185.0,0.60124907]
[1729398202587,0.001654,68186.0,68185.0,0.63822051]
[1729398204600,0.001654,68186.0,68185.0,0.55046072]
[1729398208689,0.001654,68186.0,68185.0,0.59612786]
[1729398211723,0.001654,68186.0,68185.0,0.67950702]
[1729398211928,0.001654,68186.0,68185.0,0.68335546]
[1729398212167,0.001654,68186.0,68185.0,0.59571302]
[1729398212577,0.001654,68186.0,68185.0,0.68335256]
[1729398213626,0.001654,68186.0,68185.0,0.59571302]
[1729398213870,0.001654,68186.0,68185.0,0.68334993]
[1729398214075,0.001654,68186.0,68185.0,0.59571302]
[1729398215553,0.001654,68186.0,68185.0,0.68334906]
[1729398216769,0.001654,68186.0,68185.0,0.59571302]
[1729398219295,0.001654,68186.0,68185.0,0.68335086]
[1729398219503,0.001654,68186.0,68185.0,0.59571302]
[1729398219713,0.001654,68186.0,68185.0,0.68334945]
[1729398220595,0.001654,68186.0,68185.0,0.59571302]
[1729398224300,0.001654,68186.0,68185.0,0.70526475]
[1729398230369,0.001654,68186.0,68185.0,0.59571302]
[1729398241215,0.001654,68186.0,68185.0,0.59371302]
[1729398246322,0.001654,68186.0,68185.0,0.59571302]
[1729398249765,0.001654,68186.0,68185.0,0.72729508]
[1729398253524,0.001654,68186.0,68185.0,0.72740499]
[1729398254687,0.001654,68186.0,68185.0,0.59571302]
[1729398255103,0.001654,68186.0,68185.0,0.72742348]
[1729398255758,0.001654,68186.0,68185.0,0.59571302]
[1729398259919,0.001654,68186.0,68185.0,0.59371302]
[1729398277646,0.001654,68186.0,68185.0,0.59571302]
[1729398278539,0.001654,68186.0,68185.0,0.59371302]
[1729398280500,0.001654,68186.0,68185.0,0.72540492]
[1729398280924,0.001654,68186.0,68185.0,0.59371302]
[1729398281547,0.001654,68186.0,68185.0,0.72540492]
[1729398282381,0.001654,68186.0,68185.0,0.59371302]
[1729398290817,0.001654,68186.0,68185.0,0.72540492]
[1729398292968,0.001654,68186.0,68185.0,0.7254048]
[1729398293649,0.001654,68186.0,68185.0,0.59371302]
[1729398294104,0.001654,68186.0,68185.0,0.7254048]
[1729398294558,0.001654,68186.0,68185.0,0.59371302]
[1729398295949,0.001654,68186.0,68185.0,0.7254048]
[1729398296386,0.001654,68186.0,68185.0,0.72540408]
[1729398298679,0.001654,68186.0,68185.0,0.59371302]
[1729398300136,0.001654,68186.0,68185.0,0.72540408]
[1729398300354,0.001654,68186.0,68185.0,0.59371302]
[1729398303409,0.001654,68186.0,68185.0,0.59371105]
[1729398303624,0.001654,68186.0,68185.0,0.59339705]
[1729398305407,0.001654,68186.0,68185.0,0.72508811]
[1729398306305,0.001654,68186.0,68185.0,0.59339705]
[1729398309277,0.001654,68186.0,68185.0,0.59539705]
[1729398309491,0.001654,68186.0,68185.0,0.59339705]
[1729398311178,0.001654,68186.0,68185.0,0.59539705]
[1729398312171,0.001654,68186.0,68185.0,0.59339705]
[1729398312594,0.001654,68186.0,68185.0,0.72508811]
[1729398320906,0.001654,68186.0,68185.0,0.72508459]
[1729398321327,0.001654,68186.0,68185.0,0.72507988]
[1729398326995,0.001654,68186.0,68185.0,0.72508308]
[1729398328930,0.001654,68186.0,68185.0,0.59339705]
[1729398330071,0.001654,68186.0,68185.0,0.72507871]
[1729398330314,0.001654,68186.0,68185.0,0.59339705]
[1729398330767,0.001654,68186.0,68185.0,0.72507645]
[1729398330984,0.001654,68186.0,68185.0,0.72507681]
[1729398331181,0.001654,68186.0,68185.0,0.72507863]
[1729398331446,0.001654,68186.0,68185.0,0.59339705]
[1729398331865,0.001654,68186.0,68185.0,0.7250783]
[1729398332314,0.001654,68186.0,68185.0,0.72507627]
[1729398332946,0.001654,68186.0,68185.0,0.59339705]
[1729398333582,0.001654,68186.0,68185.0,0.72507701]